fUSD/lending_fUSD_20260126
["ID","MTS","AMOUNT","RATE_DAILY","PERIOD"]
[403669533,1769459731385,500.0,0.00015554,2]
[403669534,1769459731442,587.48714437,0.00015554,2]
[403669535,1769459731497,500.0,0.00015554,2]
[403669536,1769459757878,500.0,0.00015553,2]
[403669537,1769459758473,500.0,0.00015553,2]
[403669538,1769459758727,500.0,0.00015553,2]
[403669539,1769459763096,343.05412715,0.00015738,2]
[403669540,1769459764496,500.0,0.00015553,2]
[403669541,1769459764754,500.0,0.00015553,2]
[403669542,1769459764998,500.0,0.00015553,2]
[403669543,1769459784840,318.31852614,0.00015553,2]
[403669544,1769459784864,181.68147386,0.00015553,2]
[403669545,1769459785071,500.0,0.00015553,2]
[403669546,1769459785314,500.0,0.00015553,2]
[403669547,1769459787680,355.47047384,0.000205,30]
[403669548,1769459792511,500.0,0.00015553,2]
[403669549,1769459833369,500.0,0.00015553,2]
[403669550,1769459833646,624.55953129,0.00015553,2]
[403669551,1769459856877,500.0,0.00015553,2]
[403669552,1769459857105,500.0,0.00015553,2]
[403669553,1769459857360,500.0,0.00015553,2]
[403669554,1769459887449,500.0,0.00015553,2]
[403669555,1769459887700,500.0,0.00015553,2]
[403669556,1769459887931,500.0,0.00015553,2]
[403669557,1769459905684,500.0,0.00015553,2]
[403669558,1769459905930,500.0,0.00015553,2]
[403669559,1769459906177,500.0,0.00015553,2]
[403669561,1769459924041,300.0,0.0002,120]
[403669562,1769459935380,500.0,0.00015553,2]
[403669563,1769459945377,500.0,0.00015553,2]
[403669564,1769459945611,500.0,0.00015553,2]
[403669565,1769459945854,500.0,0.00015553,2]
[403669566,1769459949680,506.5749784,0.00015553,2]
[403669567,1769459965468,150.0,0.00021,30]
[403669568,1769459967626,1333.7,0.00019178,30]
[403669569,1769459968861,187.19401645,0.00015553,2]
[403669570,1769459968885,312.80598355,0.00015553,2]
[403669571,1769459969138,500.0,0.00015553,2]
[403669572,1769459969376,502.44260764,0.00015553,2]
[403669573,1769459979638,500.0,0.00015553,2]
[403669574,1769459979883,500.0,0.00015553,2]
[403669575,1769459980138,500.0,0.00015553,2]
[403669578,1769459996188,500.0,0.00015553,2]
[403669579,1769459996393,500.0,0.00015553,2]
[403669580,1769459996684,500.0,0.00015553,2]
[403669584,1769460050312,-441.77133265,0.0001606,2]
[403669585,1769460053935,-302.0,0.0001606,2]
[403669586,1769460057088,-393.97570215,0.0001606,2]
[403669587,1769460059172,-210.02429785,0.0001606,2]
[403669588,1769460061627,-183.02514493,0.0001606,2]
[403669589,1769460162995,500.0,0.00015553,2]
[403669590,1769460163231,500.0,0.00015553,2]
[403669591,1769460163581,500.0,0.00015553,2]
[403669592,1769460205684,-404.56406043,0.00015977,2]
[403669593,1769460316345,181.84,0.00012603,2]
[403669595,1769460341146,-3540.49593957,0.00015977,2]
[403669596,1769460341175,-600.0,0.00015996,2]
[403669597,1769460341198,-1200.0,0.00016013,2]
[403669598,1769460341221,-4612.24,0.00016014,2]
[403669599,1769460341244,-815.64352242,0.0001606,2]
[403669600,1769460341268,-600.0,0.00016088,2]
[403669601,1769460341290,-600.0,0.00016088,2]
[403669602,1769460341312,-600.0,0.00016088,2]
[403669603,1769460341335,-389.02,0.00016105,2]
[403669604,1769460341358,-151.89299511,0.00016284,2]
[403669605,1769460341385,-1751.7075429,0.000163,2]
[403669610,1769460575225,3666.77,0.0001313,2]
[403669623,1769460631308,-765.99688209,0.00016288,2]
[403669625,1769460631318,-103.83855775,0.00016299,2]
[403669628,1769460631330,-598.56,0.00016299,2]
[403669630,1769460631342,-497.60144225,0.00016299,2]
[403669632,1769460631352,-1908.9624571,0.000163,2]
[403669634,1769460631361,-201.93286099,0.000163,2]
[403669635,1769460631371,-578.20924308,0.000163,2]
[403669636,1769460631381,-200.0,0.00016329,2]
[403669637,1769460631392,-151.0,0.00016335,2]
[403669638,1769460631401,-1601.90847466,0.00016338,2]
[403669639,1769460631502,-871.98025582,0.00016338,2]
[403669640,1769460631513,-824.45059083,0.00016338,2]
[403669641,1769460631525,-524.45373049,0.00016338,2]
[403669642,1769460631536,-808.01349314,0.00016338,2]
[403669643,1769460631547,-837.98650686,0.00016338,2]
[403669644,1769460631559,-898.90934689,0.00016338,2]
[403669645,1769460631574,-2806.64307172,0.00016338,2]
[403669646,1769460631590,-6420.0,0.00016338,2]
[403669647,1769460631601,-322.43061325,0.00016338,2]
[403669649,1769460637385,-1323.45921772,0.00016338,2]
[403669650,1769460637440,-999.8506,0.00016338,2]
[403669651,1769460637455,-1000.51193,0.00016338,2]
[403669652,1769460637467,-433.34,0.00016338,2]
[403669653,1769460637478,-1164.20361154,0.00016338,2]
[403669654,1769460637497,-9225.04583948,0.00016338,2]
[403669655,1769460637508,-3391.23301567,0.00016338,2]
[403669656,1769460637519,-431.69598331,0.00016338,2]
[403669657,1769460637553,-871.59133588,0.00016338,2]
[403669658,1769460637564,-32846.53666918,0.00016338,2]
[403669659,1769460637608,-1157.83394336,0.00016338,2]
[403669660,1769460637619,-7495.93213596,0.00016338,2]
[403669661,1769460637674,-1550.56786155,0.00016338,2]
[403669711,1769460639415,-1221.1636,0.00016338,2]
[403669712,1769460639471,-920970.25817269,0.00016338,2]
[403669713,1769460639481,-1477.11,0.00016389,2]
[403669714,1769460639491,-404.0,0.00016426,2]
[403669715,1769460639500,-322.6107,0.00016427,2]
[403669716,1769460639509,-3543.0,0.00016427,2]
[403669717,1769460639519,-201.93286099,0.00016427,2]
[403669718,1769460639529,-2514.57751508,0.00016427,2]
[403669719,1769460639538,-174.61919141,0.00016427,2]
[403669720,1769460639548,-226.94622895,0.00016437,2]
[403669721,1769460639557,-500.0,0.00016437,2]
[403669722,1769460639566,-500.0,0.00016437,2]
[403669723,1769460639576,-500.0,0.00016437,2]
[403669724,1769460639585,-500.0,0.00016437,2]
[403669725,1769460639595,-500.0,0.00016437,2]
[403669726,1769460639604,-500.0,0.00016437,2]
[403669727,1769460639614,-500.0,0.00016437,2]
[403669728,1769460639623,-500.0,0.00016437,2]
[403669729,1769460639634,-500.0,0.00016437,2]
[403669730,1769460639643,-500.0,0.00016437,2]
[403669731,1769460639652,-509.44466748,0.00016437,2]
[403669732,1769460639662,-500.0,0.00016437,2]
[403669733,1769460639673,-500.0,0.00016437,2]
[403669734,1769460639682,-500.0,0.00016437,2]
[403669735,1769460639691,-500.0,0.00016437,2]
[403669736,1769460639701,-500.0,0.00016438,2]
[403669737,1769460639710,-1000.0,0.00016438,2]
[403669738,1769460639720,-1000.00000001,0.00016438,2]
[403669739,1769460639730,-225.53925697,0.00016438,2]
[403669740,1769460639740,-150.00164352,0.00016452,2]
[403669741,1769460639749,-1000.0,0.00016677,2]
[403669742,1769460639758,-165.07,0.00016712,2]
[403669743,1769460639768,-151.0,0.0001675,2]
[403669744,1769460639777,-151.0,0.0001675,2]
[403669745,1769460639787,-12211.31540621,0.0001676,2]
[403669746,1769460639796,-500.0,0.0001677,2]
[403669747,1769460639811,-884.94193092,0.0001677,2]
[403669748,1769460639821,-884.94193092,0.0001677,2]
[403669749,1769460639830,-373.20391951,0.0001677,2]
[403669750,1769460639840,-884.94193092,0.0001677,2]
[403669751,1769460639850,-884.94193092,0.0001677,2]
[403669752,1769460639859,-884.94193092,0.0001677,2]
[403669753,1769460639869,-884.94193092,0.0001677,2]
[403669754,1769460639878,-884.94193092,0.0001677,2]
[403669755,1769460639889,-884.94193092,0.0001677,2]
[403669756,1769460639902,-884.94193092,0.0001677,2]
[403669757,1769460639913,-884.94193092,0.0001677,2]
[403669758,1769460639922,-884.94193092,0.0001677,2]
[403669759,1769460639933,-884.94193092,0.0001677,2]
[403669760,1769460639942,-884.94193092,0.0001677,2]
[403669761,1769460639955,-884.94193092,0.0001677,2]
[403669762,1769460639966,-884.94193092,0.0001677,2]
[403669763,1769460639979,-884.94193092,0.0001677,2]
[403669764,1769460639989,-884.94193092,0.0001677,2]
[403669765,1769460639999,-884.94193092,0.0001677,2]
[403669766,1769460640008,-884.94193092,0.0001677,2]
[403669767,1769460640019,-884.94193092,0.0001677,2]
[403669768,1769460640028,-884.94193092,0.0001677,2]
[403669769,1769460640038,-884.94193092,0.0001677,2]
[403669770,1769460640048,-884.94193092,0.0001677,2]
[403669771,1769460640057,-884.94193092,0.0001677,2]
[403669772,1769460640066,-884.94193092,0.0001677,2]
[403669773,1769460640077,-884.94193092,0.0001677,2]
[403669774,1769460640087,-884.94193092,0.0001677,2]
[403669775,1769460640097,-884.94193092,0.0001677,2]
[403669776,1769460640106,-884.94193092,0.0001677,2]
[403669777,1769460640116,-884.94193092,0.0001677,2]
[403669778,1769460640126,-884.94193092,0.0001677,2]
[403669779,1769460640135,-884.94193092,0.0001677,2]
[403669780,1769460640145,-884.94193092,0.0001677,2]
[403669781,1769460640155,-884.94193092,0.0001677,2]
[403669782,1769460640166,-884.94193092,0.0001677,2]
[403669783,1769460640175,-884.94193092,0.0001677,2]
[403669784,1769460640184,-884.94193092,0.0001677,2]
[403669785,1769460640194,-884.94193092,0.0001677,2]
[403669786,1769460640204,-884.94193092,0.0001677,2]
[403669787,1769460640214,-884.94193092,0.0001677,2]
[403669788,1769460640224,-884.94193092,0.0001677,2]
[403669789,1769460640233,-884.94193092,0.0001677,2]
[403669790,1769460640243,-884.94193092,0.0001677,2]
[403669791,1769460640252,-884.94193092,0.0001677,2]
[403669792,1769460640261,-884.94193092,0.0001677,2]
[403669793,1769460640271,-884.94193092,0.0001677,2]
[403669794,1769460640280,-884.94193092,0.0001677,2]
[403669795,1769460640290,-884.94193092,0.0001677,2]
[403669796,1769460640299,-884.94193092,0.0001677,2]
[403669797,1769460640308,-884.94193092,0.0001677,2]
[403669798,1769460640318,-884.94193092,0.0001677,2]
[403669799,1769460640328,-884.94193092,0.0001677,2]
[403669800,1769460640337,-884.94193091,0.0001677,2]
[403669801,1769460640347,-884.94193092,0.0001677,2]
[403669802,1769460640356,-884.94193092,0.0001677,2]
[403669803,1769460640366,-884.94193092,0.0001677,2]
[403669804,1769460640375,-884.94193092,0.0001677,2]
[403669805,1769460640385,-884.94193092,0.0001677,2]
[403669806,1769460640395,-884.94193092,0.0001677,2]
[403669807,1769460640405,-884.94193092,0.0001677,2]
[403669808,1769460640414,-884.94193092,0.0001677,2]
[403669809,1769460640424,-884.94193092,0.0001677,2]
[403669810,1769460640433,-884.94193092,0.0001677,2]
[403669811,1769460640442,-884.94193092,0.0001677,2]
[403669812,1769460640452,-884.94193092,0.0001677,2]
[403669813,1769460640462,-884.94193092,0.0001677,2]
[403669814,1769460640471,-884.94193092,0.0001677,2]
[403669815,1769460640480,-862.81838263,0.0001677,2]
[403669816,1769460640490,-862.81838263,0.0001677,2]
[403669817,1769460640499,-862.81838263,0.0001677,2]
[403669818,1769460640509,-862.81838263,0.0001677,2]
[403669819,1769460640518,-862.81838263,0.0001677,2]
[403669820,1769460640527,-862.81838263,0.0001677,2]
[403669821,1769460640538,-862.81838263,0.0001677,2]
[403669822,1769460640547,-862.81838263,0.0001677,2]
[403669823,1769460640557,-862.81838263,0.0001677,2]
[403669824,1769460640566,-862.81838263,0.0001677,2]
[403669825,1769460640576,-862.81838263,0.0001677,2]
[403669826,1769460640586,-862.81838263,0.0001677,2]
[403669827,1769460640597,-862.81838263,0.0001677,2]
[403669828,1769460640606,-862.81838263,0.0001677,2]
[403669829,1769460640616,-862.81838263,0.0001677,2]
[403669830,1769460640626,-862.81838263,0.0001677,2]
[403669831,1769460640635,-862.81838263,0.0001677,2]
[403669832,1769460640644,-862.81838263,0.0001677,2]
[403669833,1769460640655,-862.81838263,0.0001677,2]
[403669834,1769460640666,-862.81838263,0.0001677,2]
[403669835,1769460640675,-862.81838263,0.0001677,2]
[403669836,1769460640685,-862.81838263,0.0001677,2]
[403669837,1769460640694,-862.81838263,0.0001677,2]
[403669838,1769460640703,-862.81838263,0.0001677,2]
[403669839,1769460640713,-1150.42451014,0.0001677,2]
[403669840,1769460640722,-1026.34,0.0001677,2]
[403669841,1769460640732,-4118.5559,0.00016774,2]
[403669842,1769460640741,-32953.5828,0.00016774,2]
[403669843,1769460640750,-600.0,0.000168,6]
[403669844,1769460640760,-801.66222838,0.00016836,2]
[403669845,1769460640770,-2115.59930423,0.00016836,2]
[403669846,1769460640779,-3732.16794266,0.00016836,2]
[403669847,1769460640789,-5583.10003592,0.00016836,2]
[403669848,1769460640798,-174.61919142,0.00016848,2]
[403669849,1769460640807,-171.71,0.00016854,2]
[403669850,1769460640817,-183.95,0.0001686,2]
[403669851,1769460640826,-307.45601862,0.00016863,2]
[403669852,1769460640837,-163.09240909,0.00016872,2]
[403669853,1769460640847,-425.54996507,0.00016872,2]
[403669854,1769460640856,-158.65833628,0.00016872,2]
[403669855,1769460640865,-342.94523928,0.00016872,2]
[403669856,1769460640875,-500.0,0.00016872,2]
[403669857,1769460640886,-500.0,0.00016872,2]
[403669858,1769460640897,-478.79705115,0.00016872,2]
[403669859,1769460640907,-151.0,0.00016873,2]
[403669860,1769460640918,-823.77908852,0.00016873,2]
[403669861,1769460640930,-250.0,0.00016873,2]
[403669862,1769460640940,-500.0,0.00016873,2]
[403669863,1769460640949,-151.0,0.00016873,2]
[403669864,1769460640961,-695.39793187,0.00016873,2]
[403669865,1769460640972,-250.0,0.00016873,2]
[403669866,1769460640981,-500.0,0.00016873,2]
[403669867,1769460640991,-151.0,0.00016873,2]
[403669868,1769460641001,-250.0,0.00016873,2]
[403669869,1769460641011,-500.0,0.00016873,2]
[403669870,1769460641021,-151.0,0.00016873,2]
[403669871,1769460641031,-250.0,0.00016873,2]
[403669872,1769460641041,-500.0,0.00016873,2]
[403669873,1769460641053,-151.0,0.00016873,2]
[403669874,1769460641062,-250.0,0.00016873,2]
[403669875,1769460641073,-500.0,0.00016873,2]
[403669876,1769460641083,-250.0,0.00016873,2]
[403669877,1769460641092,-500.0,0.00016873,2]
[403669878,1769460641102,-151.0,0.00016873,2]
[403669879,1769460641112,-500.0,0.00016873,2]
[403669880,1769460641121,-250.0,0.00016873,2]
[403669881,1769460641130,-500.0,0.00016873,2]
[403669882,1769460641139,-151.0,0.00016873,2]
[403669883,1769460641148,-500.0,0.00016873,2]
[403669884,1769460641158,-250.0,0.00016873,2]
[403669885,1769460641167,-500.0,0.00016873,2]
[403669886,1769460641176,-151.0,0.00016873,2]
[403669887,1769460641185,-500.0,0.00016873,2]
[403669888,1769460641195,-262.18822744,0.00016873,2]
[403669889,1769460641204,-222.6043359,0.00016873,2]
[403669890,1769460641213,-500.0,0.00016873,2]
[403669891,1769460641222,-151.0,0.00016873,2]
[403669892,1769460641231,-500.0,0.00016873,2]
[403669893,1769460641240,-500.0,0.00016873,2]
[403669894,1769460641249,-500.0,0.00016873,2]
[403669895,1769460641259,-500.0,0.00016873,2]
[403669896,1769460641268,-151.0,0.00016873,2]
[403669897,1769460641277,-500.0,0.00016873,2]
[403669898,1769460641286,-500.0,0.00016873,2]
[403669899,1769460641295,-151.0,0.00016873,2]
[403669900,1769460641304,-500.0,0.00016873,2]
[403669901,1769460641314,-151.0,0.00016873,2]
[403669902,1769460641324,-500.0,0.00016873,2]
[403669903,1769460641333,-151.0,0.00016873,2]
[403669904,1769460641342,-500.0,0.00016873,2]
[403669905,1769460641351,-500.0,0.00016873,2]
[403669906,1769460641360,-500.0,0.00016873,2]
[403669907,1769460641370,-500.0,0.00016873,2]
[403669908,1769460641379,-250.0,0.00016873,2]
[403669909,1769460641391,-250.0,0.00016873,2]
[403669910,1769460641400,-250.0,0.00016873,2]
[403669911,1769460641410,-500.0,0.00016873,2]
[403669912,1769460641419,-250.0,0.00016873,2]
[403669913,1769460641428,-250.0,0.00016873,2]
[403669914,1769460641438,-500.0,0.00016873,2]
[403669915,1769460641447,-250.0,0.00016873,2]
[403669916,1769460641456,-250.0,0.00016873,2]
[403669917,1769460641465,-500.0,0.00016873,2]
[403669918,1769460641474,-250.0,0.00016873,2]
[403669919,1769460641483,-250.0,0.00016873,2]
[403669920,1769460641492,-500.0,0.00016873,2]
[403669921,1769460641501,-250.0,0.00016873,2]
[403669922,1769460641510,-250.0,0.00016873,2]
[403669923,1769460641519,-500.0,0.00016873,2]
[403669924,1769460641528,-250.0,0.00016873,2]
[403669925,1769460641537,-250.0,0.00016873,2]
[403669926,1769460641546,-250.0,0.00016873,2]
[403669927,1769460641555,-500.0,0.00016873,2]
[403669928,1769460641565,-250.0,0.00016873,2]
[403669929,1769460641574,-250.0,0.00016873,2]
[403669930,1769460641583,-500.0,0.00016873,2]
[403669931,1769460641592,-250.0,0.00016873,2]
[403669932,1769460641600,-250.0,0.00016873,2]
[403669933,1769460641610,-500.0,0.00016873,2]
[403669934,1769460641620,-250.0,0.00016873,2]
[403669935,1769460641630,-250.0,0.00016873,2]
[403669936,1769460641641,-500.0,0.00016873,2]
[403669937,1769460641650,-250.0,0.00016873,2]
[403669938,1769460641658,-250.0,0.00016873,2]
[403669939,1769460641667,-500.0,0.00016873,2]
[403669940,1769460641676,-250.0,0.00016873,2]
[403669941,1769460641685,-500.0,0.00016873,2]
[403669942,1769460641694,-385.40135603,0.00016873,2]
[403669943,1769460641704,-500.0,0.00016873,2]
[403669944,1769460641713,-250.0,0.00016873,2]
[403669945,1769460641722,-250.0,0.00016873,2]
[403669946,1769460641731,-250.0,0.00016873,2]
[403669947,1769460641740,-200.0,0.00016873,2]
[403669948,1769460641750,-250.0,0.00016873,2]
[403669949,1769460641760,-151.0,0.00016873,2]
[403669950,1769460641769,-348.1839406,0.00016873,2]
[403669951,1769460641778,-151.0,0.00016873,2]
[403669952,1769460641788,-250.0,0.00016873,2]
[403669953,1769460641800,-200.0,0.00016873,2]
[403669954,1769460641809,-250.0,0.00016873,2]
[403669955,1769460641818,-250.0,0.00016873,2]
[403669956,1769460641827,-250.0,0.00016873,2]
[403669957,1769460641838,-1000.0,0.00016873,2]
[403669958,1769460641848,-250.0,0.00016873,2]
[403669959,1769460641857,-1000.0,0.00016873,2]
[403669960,1769460641866,-250.0,0.00016873,2]
[403669961,1769460641877,-1000.0,0.00016873,2]
[403669962,1769460641886,-500.0,0.00016873,2]
[403669963,1769460641899,-250.0,0.00016873,2]
[403669964,1769460641909,-1000.0,0.00016873,2]
[403669965,1769460641918,-250.0,0.00016873,2]
[403669966,1769460641928,-1000.0,0.00016873,2]
[403669967,1769460641940,-250.0,0.00016873,2]
[403669968,1769460641950,-1000.0,0.00016873,2]
[403669969,1769460641959,-250.0,0.00016873,2]
[403669970,1769460641973,-1000.0,0.00016873,2]
[403669971,1769460641982,-250.0,0.00016873,2]
[403669972,1769460641991,-1000.0,0.00016873,2]
[403669973,1769460642001,-250.0,0.00016873,2]
[403669974,1769460642221,-705.97670987,0.00016873,2]
[403669976,1769460642230,-250.0,0.00016873,2]
[403669977,1769460642239,-313.34353873,0.00016873,2]
[403669978,1769460642248,-500.0,0.00016884,2]
[403669979,1769460642258,-573.39128735,0.00016884,2]
[403669980,1769460642267,-249.2094095,0.00016884,2]
[403669981,1769460642275,-162.93573151,0.00016884,2]
[403669982,1769460642284,-500.0,0.00016884,2]
[403669983,1769460642294,-163.26940322,0.00016884,2]
[403669984,1769460642303,-208.18830285,0.00016884,2]
[403669985,1769460642312,-500.0,0.00016884,2]
[403669986,1769460642321,-500.0,0.00016884,2]
[403669987,1769460642330,-500.0,0.00016884,2]
[403669988,1769460642339,-500.0,0.00016884,2]
[403669989,1769460642348,-500.0,0.00016884,2]
[403669990,1769460642357,-500.0,0.00016884,2]
[403669991,1769460642366,-500.0,0.00016884,2]
[403669992,1769460642375,-160.35517843,0.00016884,2]
[403669993,1769460642384,-336.04474913,0.00016884,2]
[403669994,1769460642394,-500.0,0.00016884,2]
[403669995,1769460642403,-500.0,0.00016884,2]
[403669996,1769460642413,-500.0,0.00016884,2]
[403669997,1769460642422,-500.0,0.00016884,2]
[403669998,1769460642431,-500.0,0.00016884,2]
[403669999,1769460642440,-375.25011324,0.00016884,2]
[403670000,1769460642449,-500.0,0.00016884,2]
[403670001,1769460642458,-500.0,0.00016884,2]
[403670002,1769460642468,-204.88166996,0.00016884,2]
[403670003,1769460642478,-500.0,0.00016884,2]
[403670004,1769460642487,-500.0,0.00016884,2]
[403670005,1769460642497,-161.02070758,0.00016884,2]
[403670006,1769460642506,-160.10406232,0.00016884,2]
[403670007,1769460642515,-160.09618491,0.00016884,2]
[403670008,1769460642524,-160.10752734,0.00016884,2]
[403670009,1769460642534,-500.0,0.00016884,2]
[403670010,1769460642544,-500.0,0.00016884,2]
[403670011,1769460642552,-500.55962396,0.00016884,2]
[403670012,1769460642561,-557.85157046,0.00016884,2]
[403670013,1769460642570,-500.0,0.00016884,2]
[403670014,1769460642579,-284.17906244,0.00016884,2]
[403670015,1769460642589,-500.0,0.00016884,2]
[403670016,1769460642600,-500.0,0.00016884,2]
[403670017,1769460642609,-300.0,0.00016884,2]
[403670018,1769460642619,-500.0,0.00016884,2]
[403670019,1769460642628,-500.0,0.00016884,2]
[403670020,1769460642638,-500.0,0.00016884,2]
[403670021,1769460642647,-500.0,0.00016884,2]
[403670022,1769460642656,-500.0,0.00016884,2]
[403670023,1769460642666,-500.0,0.00016884,2]
[403670024,1769460642676,-8012.52098597,0.00016899,2]
[403670025,1769460642686,-1200.0,0.000169,6]
[403670026,1769460642695,-9456.90626247,0.000169,2]
[403670027,1769460642703,-1000.0,0.00016912,2]
[403670028,1769460642712,-1000.0,0.00016916,2]
[403670029,1769460642722,-209.40437684,0.00016975,2]
[403670030,1769460642731,-181.08010149,0.00016975,2]
[403670031,1769460642739,-500.0,0.00016999,2]
[403670032,1769460642748,-541.65463355,0.00016999,2]
[403670033,1769460642757,-500.0,0.00016999,2]
[403670034,1769460642766,-500.0,0.00016999,2]
[403670035,1769460642775,-500.0,0.00016999,2]
[403670036,1769460642784,-500.0,0.00016999,2]
[403670037,1769460642793,-500.0,0.00016999,2]
[403670038,1769460642802,-500.0,0.00016999,2]
[403670039,1769460642811,-500.0,0.00016999,2]
[403670040,1769460642820,-500.0,0.00016999,2]
[403670041,1769460642829,-500.0,0.00016999,2]
[403670042,1769460642838,-500.0,0.00016999,2]
[403670043,1769460642847,-389.02,0.00016999,2]
[403670044,1769460642857,-1026.34,0.00017044,2]
[403670045,1769460642867,-1000.0,0.00017054,2]
[403670046,1769460642875,-163.08,0.0001707,2]
[403670047,1769460642885,-150.0,0.00017085,2]
[403670048,1769460642896,-150.0,0.00017085,2]
[403670049,1769460642905,-498.0,0.00017085,2]
[403670050,1769460642914,-150.0,0.00017085,2]
[403670051,1769460642923,-246.76380553,0.00017085,2]
[403670052,1769460642934,-150.0,0.00017085,2]
[403670053,1769460642943,-150.0,0.00017085,2]
[403670054,1769460642952,-500.0,0.00017085,2]
[403670055,1769460642961,-500.0,0.00017085,2]
[403670056,1769460642971,-150.0,0.00017085,2]
[403670057,1769460642980,-500.0,0.00017085,2]
[403670058,1769460642989,-500.0,0.00017085,2]
[403670059,1769460642998,-152.18717547,0.00017085,2]
[403670060,1769460643007,-150.0,0.00017085,2]
[403670061,1769460643015,-150.0,0.0001714,2]
[403670062,1769460643024,-498.0,0.0001714,2]
[403670063,1769460643034,-150.0,0.0001714,2]
[403670064,1769460643043,-150.0,0.0001714,2]
[403670065,1769460643053,-244.09500415,0.0001714,2]
[403670066,1769460643062,-500.0,0.0001714,2]
[403670067,1769460643071,-500.0,0.0001714,2]
[403670068,1769460643081,-500.0,0.0001714,2]
[403670069,1769460643090,-500.0,0.0001714,2]
[403670070,1769460643100,-8012.52098594,0.00017141,2]
[403670071,1769460643108,-237.0846,0.00017146,2]
[403670072,1769460643118,-297.0,0.00017147,2]
[403670073,1769460643127,-1961.986,0.00017157,2]
[403670074,1769460643139,-281.55869475,0.00017157,2]
[403670075,1769460643148,-4317.78800202,0.00017157,2]
[403670076,1769460643158,-3240.0,0.00017169,2]
[403670077,1769460643167,-543.10427338,0.00017175,2]
[403670078,1769460643176,-150.0,0.00017195,2]
[403670079,1769460643185,-498.0,0.00017195,2]
[403670080,1769460643194,-150.0,0.00017195,2]
[403670081,1769460643203,-150.0,0.00017195,2]
[403670082,1769460643212,-500.0,0.00017195,2]
[403670083,1769460643221,-500.0,0.00017195,2]
[403670084,1769460643230,-500.0,0.00017195,2]
[403670085,1769460643239,-500.0,0.00017195,2]
[403670086,1769460643249,-150.0,0.00017249,2]
[403670087,1769460643258,-498.0,0.00017249,2]
[403670088,1769460643267,-150.0,0.00017249,2]
[403670089,1769460643277,-288.17122606,0.00017249,2]
[403670090,1769460643286,-500.0,0.00017249,2]
[403670091,1769460643295,-500.0,0.00017249,2]
[403670092,1769460643304,-159.69674445,0.00017256,2]
[403670093,1769460643314,-254.46436411,0.00017256,2]
[403670094,1769460643323,-235.18438983,0.00017256,2]
[403670095,1769460643332,-500.0,0.00017256,2]
[403670096,1769460643343,-300.0,0.00017256,2]
[403670097,1769460643352,-300.0,0.00017256,2]
[403670098,1769460643361,-300.0,0.00017256,2]
[403670099,1769460643371,-300.0,0.00017256,2]
[403670100,1769460643380,-300.0,0.00017256,2]
[403670101,1769460643389,-300.0,0.00017256,2]
[403670102,1769460643398,-300.0,0.00017256,2]
[403670103,1769460643407,-300.0,0.00017256,2]
[403670104,1769460643417,-260.51,0.00017256,2]
[403670105,1769460643426,-300.0,0.00017256,2]
[403670106,1769460643437,-300.0,0.00017256,2]
[403670107,1769460643448,-150.0,0.00017256,2]
[403670108,1769460643458,-636.67,0.00017257,2]
[403670109,1769460643467,-636.67,0.00017257,2]
[403670110,1769460643476,-636.67,0.00017257,2]
[403670111,1769460643486,-636.67,0.00017257,2]
[403670112,1769460643495,-636.67,0.00017257,2]